bitfinex/quotes_SOLUSD_20250212
["timestamp","ask_amount","ask_price","bid_price","bid_amount"]
[1739391749278,0.03,195.14,195.11,15.78729826]
[1739391750111,0.03,195.14,195.12,5.125]
[1739391750922,0.03,195.14,195.12,20.91229826]
[1739391751093,0.03,195.14,195.13,20.91199826]
[1739391752293,0.03,195.14,195.13,5.1247]
[1739391752987,0.03,195.14,195.13,20.91199826]
[1739391753693,0.03,195.2,195.13,11.17160568]
[1739391753890,0.03,195.2,195.16,10.09573407]
[1739391754306,0.03,195.2,195.14,10.09573407]
[1739391754808,0.03,195.2,195.15,17.9348]
[1739391755187,0.03,195.2,195.15,29.10628956]
[1739391755600,0.03,195.2,195.17,10.09573407]
[1739391756296,0.03,195.2,195.15,17.9348]
[1739391756495,10.12573407,195.2,195.15,17.9348]
[1739391757091,0.03,195.2,195.15,17.9348]
[1739391757289,0.03,195.2,195.15,28.03053407]
[1739391758491,0.03,195.2,195.16,10.09573407]
[1739391758691,0.03,195.2,195.17,5.1237]
[1739391759306,10.12573407,195.2,195.17,5.1237]
[1739391759503,10.09573407,195.19,195.17,5.1237]
[1739391759692,10.09573407,195.18,195.13,5.1247]
[1739391760416,10.12573407,195.2,195.13,15.22043407]
[1739391760597,0.03,195.2,195.16,10.09573407]
[1739391760999,0.03,195.2,195.17,10.09573407]
[1739391761798,0.03,195.2,195.18,15.21913407]
[1739391762125,0.03,195.2,195.19,10.09573407]
[1739391763442,0.03,195.2,195.19,15.21893407]
[1739391766021,0.03,195.2,195.18,10.09573407]
[1739391766320,0.03,195.2,195.17,15.21943407]
[1739391768829,0.03,195.2,195.16,15.21973407]
[1739391769323,0.03,195.2,195.17,10.09573407]
[1739391770095,0.03,195.2,195.18,5.1234]
[1739391771025,0.03,195.2,195.17,5.1237]
[1739391772524,0.03,195.2,195.17,10.09573407]
[1739391773605,0.03,195.2,195.18,5.1234]
[1739391774626,0.03,195.2,195.17,15.21943407]
[1739391775330,10.09573407,195.24,195.17,15.21943407]
[1739391775941,10.09573407,195.26,195.19,10.09573407]
[1739391776833,10.09573407,195.25,195.19,5.1232]
[1739391777139,10.09573407,195.24,195.19,5.1232]
[1739391777434,10.09573407,195.25,195.19,5.1232]
[1739391777617,1.5398,195.28,195.19,5.1232]
[1739391777618,10.09573407,195.24,195.19,5.1232]
[1739391778008,10.09573407,195.24,195.18,17.932]
[1739391779132,10.09573407,195.25,195.18,28.02773407]
[1739391779929,10.09573407,195.24,195.18,17.932]
[1739391780643,10.09573407,195.23,195.18,12.8086]
[1739391780811,10.09573407,195.22,195.18,12.8086]
[1739391781018,10.09573407,195.19,195.16,5.124]
[1739391782143,10.09573407,195.19,195.12,22.97123407]
[1739391782144,10.09573407,195.17,195.12,12.8755]
[1739391782316,6.1073,195.23,195.12,0.063]
[1739391782317,10.09573407,195.13,195.12,0.063]
[1739391782824,10.09573407,195.15,195.12,0.063]
[1739391783028,1.5056,195.21,195.12,0.063]
[1739391783546,10.09573407,195.18,195.12,0.063]
[1739391783745,10.09573407,195.18,195.13,5.1247]
[1739391784242,10.09573407,195.16,195.13,5.1247]
[1739391784819,10.09573407,195.16,195.12,0.063]
[1739391785022,10.09573407,195.14,195.12,0.063]
[1739391785448,10.09573407,195.13,195.12,0.063]
[1739391785834,10.09573407,195.15,195.12,0.063]
[1739391786414,10.09573407,195.16,195.12,0.063]
[1739391786637,10.09573407,195.15,195.12,0.063]
[1739391786844,10.09573407,195.14,195.12,0.063]
[1739391787351,10.09573407,195.17,195.12,0.063]
[1739391787829,10.09573407,195.16,195.12,0.063]
[1739391788554,10.09573407,195.17,195.12,0.063]
[1739391789054,10.09573407,195.18,195.12,0.063]
[1739391789224,10.09573407,195.21,195.14,10.09573407]
[1739391790533,10.09573407,195.2,195.15,5.1242]
[1739391790728,1.5598,195.26,195.13,10.09573407]
[1739391790729,10.09573407,195.16,195.13,5.1245]
[1739391791628,10.09573407,195.16,195.12,0.063]
[1739391792947,10.09573407,195.18,195.12,0.063]
[1739391793451,10.09573407,195.15,195.12,0.063]
[1739391793661,10.09573407,195.14,195.12,0.063]
[1739391793960,40.38293628,195.2,195.12,0.063]
[1739391793961,10.09573407,195.13,195.12,0.063]
[1739391794254,10.09573407,195.16,195.12,0.063]
[1739391795952,10.09573407,195.17,195.12,0.063]
[1739391796659,10.09573407,195.19,195.12,10.15873407]
[1739391797155,7.9016,195.23,195.12,0.063]
[1739391797156,10.09573407,195.17,195.12,0.063]
[1739391799150,10.09573407,195.18,195.12,0.063]
[1739391799549,10.09573407,195.17,195.12,0.063]
[1739391801352,10.09573407,195.2,195.12,5.188]
[1739391801553,10.09573407,195.23,195.16,10.09573407]
[1739391801759,0.03,195.24,195.18,10.09573407]
[1739391801961,0.03,195.24,195.14,1.6164]
[1739391801962,0.03,195.24,195.2,10.09573407]
[1739391802260,0.03,195.24,195.16,1.075535]
[1739391802862,0.03,195.24,195.18,10.09573407]
[1739391803058,10.09573407,195.23,195.19,5.1232]
[1739391803256,10.12573407,195.24,195.19,5.1232]
[1739391803652,15.76881559,195.23,195.19,5.1232]
[1739391803858,15.79881559,195.24,195.18,12.8086]
[1739391804155,0.03,195.24,195.18,33.70081559]
[1739391804361,0.03,195.24,195.2,15.76881559]
[1739391804948,0.03,195.24,195.19,15.76881559]
[1739391805144,0.03,195.24,195.19,12.808]
[1739391805657,15.79881559,195.24,195.19,12.808]
[1739391806776,15.76881559,195.23,195.19,12.808]
[1739391807765,15.76881559,195.22,195.19,12.808]
[1739391808262,15.76881559,195.22,195.16,17.934]
[1739391808468,15.76881559,195.21,195.16,17.934]
[1739391808971,15.76881559,195.22,195.16,17.934]
[1739391809676,15.76881559,195.21,195.16,17.934]
[1739391813075,15.76881559,195.21,195.16,12.81]
[1739391813276,15.76881559,195.2,195.16,12.81]
[1739391814168,15.76881559,195.22,195.16,17.934]
[1739391815597,15.76881559,195.22,195.16,17.997]
[1739391815979,0.03,195.21,195.16,17.997]
[1739391816701,15.79881559,195.21,195.16,12.873]
[1739391818582,15.76881559,195.18,195.16,0.063]
[1739391818781,15.76881559,195.17,195.16,0.063]
[1739391822597,15.76881559,195.18,195.16,0.063]
[1739391822904,15.76881559,195.17,195.16,0.063]
[1739391823614,10.09874323,195.17,195.16,0.063]
[1739391824109,10.09874323,195.19,195.16,0.063]
[1739391824497,10.09874323,195.18,195.16,0.063]
[1739391824700,0.03,195.21,195.16,0.063]
[1739391824701,10.09874323,195.17,195.16,0.063]
[1739391826713,10.09874323,195.18,195.16,0.063]
[1739391826912,10.09874323,195.17,195.16,0.063]
[1739391827210,10.22423323,195.17,195.16,0.063]
[1739391827418,11.72623323,195.17,195.12,0.063]
[1739391827604,10.09874323,195.13,195.12,0.063]
[1739391829700,15.79146482,195.13,195.12,0.063]
[1739391833617,15.45869082,195.13,195.12,0.063]
[1739391836932,15.79146482,195.15,195.12,0.063]
[1739391837309,15.79146482,195.13,195.12,0.063]
[1739391841726,15.79146482,195.14,195.12,0.063]
[1739391842024,15.79146482,195.15,195.12,0.063]
[1739391842826,15.79146482,195.14,195.12,0.063]
[1739391844223,15.79146482,195.13,195.12,0.063]
[1739391844909,15.79146482,195.15,195.12,0.063]
[1739391848026,15.79146482,195.13,195.12,0.063]
[1739391848406,15.79146482,195.14,195.12,0.063]
[1739391848605,0.03,195.17,195.12,0.063]
[1739391849011,15.82146482,195.17,195.12,0.063]
[1739391849212,15.79146482,195.16,195.12,0.063]
[1739391850729,15.82146482,195.17,195.12,0.063]
[1739391851637,10.12884342,195.17,195.12,0.063]
[1739391851831,0.03,195.15,195.12,0.063]
[1739391852430,0.03,195.15,195.13,15.22354342]
[1739391852744,0.03,195.15,195.14,10.09884342]
[1739391853113,0.03,195.15,195.13,15.22354342]
[1739391853539,0.03,195.15,195.12,15.28684342]
[1739391854134,0.03,195.15,195.12,5.188]
[1739391854521,0.03,195.15,195.12,0.063]
[1739391856625,0.03,195.15,195.13,5.1247]
[1739391857632,0.03,195.15,195.12,0.063]
[1739391859836,0.03,195.15,195.13,15.78080509]
[1739391860041,0.03,195.15,195.14,15.78080509]
[1739391860925,0.03,195.15,195.14,20.90530509]
[1739391862237,0.03,195.17,195.16,20.0]
[1739391862442,0.03,195.17,195.16,36.85647928]
[1739391862628,0.03,195.17,195.16,35.78080509]
[1739391863449,0.03,195.17,195.16,40.90480509]
[1739391864851,0.0001,195.17,195.16,40.90480509]
[1739391868651,0.0001,195.17,195.16,25.124]
[1739391871953,0.0001,195.17,195.16,40.90480509]
[1739391874656,0.0001,195.17,195.16,40.96780509]
[1739391876581,0.0001,195.17,195.16,42.04353782]
[1739391876875,0.0001,195.17,195.16,40.96780509]
[1739391877760,0.0001,195.17,195.16,35.27876603]
[1739391877966,0.0001,195.17,195.16,48.81610456]
[1739391879072,0.0001,195.17,195.16,49.06708456]
[1739391879372,0.0001,195.17,195.16,55.26998456]
[1739391880374,0.03,195.21,195.2,20.0]
[1739391880544,0.03,195.21,195.2,30.09176603]
[1739391881558,0.03,195.21,195.2,35.21466603]
[1739391881763,0.0001,195.21,195.2,40.0578978]
[1739391882171,0.0001,195.21,195.2,38.98240759]
[1739391883486,0.0001,195.21,195.2,53.59512793]
[1739391885428,0.03,195.26,195.24,20.0]
[1739391885596,0.03,195.26,195.25,31.16691221]
[1739391885760,0.03,195.35,195.29,10.09176603]
[1739391886595,10.12176603,195.35,195.29,5.1205]
[1739391887393,10.09176603,195.34,195.28,12.8017]
[1739391887704,15.75302373,195.34,195.28,17.9225]
[1739391887888,15.75302373,195.33,195.28,5.1208]
[1739391889217,15.78302373,195.35,195.28,15.75302373]
[1739391890514,15.78302373,195.35,195.29,5.1205]
[1739391890719,0.03,195.35,195.3,15.75302373]
[1739391891600,0.03,195.35,195.31,5.12]
[1739391892626,0.03,195.35,195.33,15.75302373]
[1739391893421,0.03,195.35,195.32,15.75302373]
[1739391893612,0.03,195.35,195.31,20.87302373]
[1739391894727,15.75302373,195.33,195.3,5.1203]
[1739391895023,15.75302373,195.33,195.28,5.1208]
[1739391895195,15.75302373,195.33,195.29,7.93527886]
[1739391895596,15.75302373,195.33,195.28,5.1208]
[1739391896219,15.75302373,195.33,195.27,5.1211]
[1739391896610,15.75302373,195.32,195.27,5.1211]
[1739391896819,15.75302373,195.3,195.27,5.1211]
[1739391897126,15.75302373,195.32,195.25,20.87462373]
[1739391897336,15.75302373,195.33,195.26,15.75302373]
[1739391898007,15.75302373,195.33,195.27,5.1211]
[1739391898511,15.75302373,195.29,195.24,5.1219]
[1739391899497,15.75302373,195.29,195.23,17.9904]
[1739391900124,15.75302373,195.27,195.23,5.1851]
[1739391900596,15.75302373,195.24,195.23,0.063]
[1739391902614,15.75302373,195.26,195.23,0.063]
[1739391902929,15.75302373,195.24,195.23,0.063]
[1739391903312,15.75302373,195.25,195.23,0.063]
[1739391903528,15.75302373,195.26,195.23,0.063]
[1739391903742,15.75302373,195.24,195.23,0.063]
[1739391904245,15.75302373,195.26,195.23,0.063]
[1739391904538,15.75302373,195.29,195.23,0.063]
[1739391904742,15.75302373,195.31,195.24,15.75302373]
[1739391904943,15.78302373,195.32,195.25,15.75302373]
[1739391905721,15.78302373,195.32,195.26,5.1213]
[1739391906106,0.03,195.32,195.26,20.87432373]
[1739391906312,0.03,195.32,195.28,15.75302373]
[1739391906616,0.03,195.32,195.29,15.75302373]
[1739391907337,0.03,195.32,195.3,15.75302373]
[1739391907511,0.03,195.32,195.31,5.12]
[1739391909335,0.03,195.32,195.31,16.00400373]
[1739391909534,0.03,195.32,195.31,30.49069987]
[1739391910240,0.03,195.32,195.31,15.75302373]
[1739391910435,0.03,195.32,195.31,21.94790737]
[1739391910743,0.03,195.32,195.31,22.41322373]
[1739391911726,15.75302373,195.38,195.31,25.89033751]
[1739391911932,15.75302373,195.38,195.31,22.41322373]
[1739391912162,15.75302373,195.39,195.32,15.75302373]
[1739391912533,15.75302373,195.4,195.33,15.75302373]
[1739391912743,15.75302373,195.4,195.34,5.1192]
[1739391913239,15.75302373,195.38,195.34,5.1192]
[1739391913953,15.75302373,195.39,195.32,15.75302373]
[1739391914159,15.75302373,195.4,195.33,15.75302373]
[1739391915571,15.75302373,195.4,195.34,5.1192]
[1739391919338,15.75302373,195.4,195.34,15.75302373]
[1739391920469,15.75302373,195.4,195.35,5.119]
[1739391921867,10.07518263,195.41,195.34,10.07518263]
[1739391922650,10.07518263,195.41,195.35,5.119]
[1739391923775,10.07518263,195.41,195.35,15.19418263]
[1739391923967,10.07518263,195.42,195.36,10.07518263]
[1739391924162,0.03,195.41,195.36,10.07518263]
[1739391924861,0.03,195.41,195.37,5.1184]
[1739391929610,0.03,195.41,195.37,10.07518263]
[1739391930709,0.03,195.41,195.38,5.1182]
[1739391931394,0.03,195.41,195.38,15.19338263]
[1739391931889,0.03,195.41,195.39,10.07518263]
[1739391932501,0.03,195.41,195.4,5.1177]
[1739391934305,10.07518263,195.45,195.4,5.1177]
[1739391934618,10.07518263,195.46,195.4,5.1177]
[1739391935500,10.07518263,195.45,195.38,10.07518263]
[1739391936296,10.07518263,195.43,195.37,17.9146]
[1739391936500,10.07518263,195.44,195.38,10.07518263]
[1739391936703,10.07518263,195.45,195.39,5.1179]
[1739391936897,10.07518263,195.45,195.39,15.19308263]
[1739391937506,10.07518263,195.46,195.39,15.19308263]
[1739391937813,10.07518263,195.47,195.4,10.07518263]
[1739391938311,10.07518263,195.48,195.41,10.07518263]
[1739391938511,10.07518263,195.49,195.42,10.07518263]
[1739391938897,10.07518263,195.49,195.43,10.07518263]
[1739391939098,10.07518263,195.5,195.44,10.07518263]
[1739391939318,10.07518263,195.51,195.45,10.07518263]
[1739391939608,0.03,195.52,195.45,10.07518263]
[1739391939609,10.10518263,195.52,195.45,10.07518263]
[1739391939808,0.03,195.52,195.48,10.07518263]
[1739391940906,0.03,195.52,195.49,5.1153]
[1739391941409,0.03,195.52,195.49,15.19048263]
[1739391942610,0.03,195.52,195.5,10.07518263]
[1739391942989,0.03,195.52,195.51,10.07518263]
[1739391943684,0.03,195.52,195.51,15.18998263]
[1739391944204,10.07518263,195.56,195.51,5.1148]
[1739391944416,10.07518263,195.55,195.51,5.1148]
[1739391944810,10.07518263,195.56,195.49,15.19048263]
[1739391945006,2.5726,195.61,195.51,10.07518263]
[1739391945007,10.07518263,195.57,195.51,10.07518263]
[1739391945787,10.07518263,195.57,195.52,5.1145]
[1739391946826,10.07518263,195.56,195.49,10.07518263]
[1739391947006,10.07518263,195.57,195.5,10.07518263]
[1739391947816,10.07518263,195.57,195.51,5.1148]
[1739391948318,10.07518263,195.59,195.53,10.07518263]
[1739391948508,0.03,195.65,195.55,10.07518263]
[1739391948509,10.07518263,195.61,195.55,10.07518263]
[1739391948815,10.07518263,195.61,195.54,10.07518263]
[1739391949329,10.07518263,195.61,195.55,10.07518263]
[1739391949535,10.07518263,195.63,195.57,10.07518263]
[1739391950104,10.07518263,195.64,195.58,10.07518263]
[1739391950326,10.10518263,195.65,195.58,10.07518263]
[1739391950529,10.10518263,195.65,195.59,10.07518263]
[1739391950706,10.07518263,195.64,195.58,10.07518263]
[1739391951735,10.07518263,195.64,195.59,5.1127]
[1739391952533,10.10518263,195.65,195.59,5.1127]
[1739391952848,10.10518263,195.65,195.59,15.18788263]
[1739391953727,10.10518263,195.65,195.58,10.07518263]
[1739391954119,10.07518263,195.64,195.58,10.07518263]
[1739391954422,0.03,195.65,195.63,10.07518263]
[1739391954607,0.03,195.65,195.62,10.07518263]
[1739391955408,0.03,195.65,195.63,5.1116]
[1739391955917,10.10518263,195.65,195.6,5.1124]
[1739391956336,30.22554789,195.7,195.6,5.1124]
[1739391956511,10.07518263,195.61,195.59,5.1127]
[1739391956820,10.07518263,195.6,195.55,5.1137]
[1739391957328,10.07518263,195.58,195.55,5.1137]
[1739391957533,10.07518263,195.59,195.54,5.114]
[1739391957846,10.07518263,195.58,195.54,5.114]
[1739391958835,10.07518263,195.59,195.54,5.114]
[1739391959042,10.07518263,195.6,195.54,5.114]
[1739391959214,10.07518263,195.59,195.54,5.114]
[1739391961418,10.10518263,195.6,195.54,5.114]
[1739391961643,10.10518263,195.6,195.54,15.18918263]
[1739391962341,10.07518263,195.58,195.54,5.114]
[1739391963219,10.07518263,195.59,195.54,5.114]
[1739391963550,0.03,195.6,195.57,10.07518263]
[1739391963725,0.03,195.6,195.58,10.07518263]
[1739391963931,0.03,195.6,195.59,10.07518263]
[1739391965171,0.03,195.6,195.59,15.18788263]
[1739391965369,0.03,195.6,195.59,16.26115018]
[1739391965661,0.03,195.6,195.59,21.88342282]
[1739391966265,0.03,195.6,195.59,20.81015527]
[1739391966434,0.03,195.6,195.57,15.69745527]
[1739391966630,0.03,195.6,195.58,5.1129]
[1739391966852,0.03,195.6,195.58,20.81035527]
[1739391967266,0.03,195.6,195.59,15.69745527]
[1739391967853,0.03,195.6,195.59,20.81015527]
[1739391968074,0.03,195.6,195.59,21.88351524]
[1739391968664,0.03,195.6,195.58,15.69745527]
[1739391968834,0.03,195.6,195.58,20.81035527]
[1739391969331,15.69745527,195.64,195.58,20.81035527]
[1739391969533,15.69745527,195.65,195.58,20.81035527]
[1739391969760,15.69745527,195.65,195.59,15.69745527]
[1739391971057,15.69745527,195.64,195.57,33.59375527]
[1739391971264,15.69745527,195.62,195.57,17.8963]
[1739391971565,15.69745527,195.63,195.57,17.8963]
[1739391972778,15.69745527,195.6,195.57,5.1132]
[1739391972962,15.69745527,195.61,195.57,5.1132]
[1739391973473,15.69745527,195.62,195.57,5.1132]
[1739391973666,15.69745527,195.63,195.56,15.69745527]
[1739391973968,15.69745527,195.63,195.56,33.59475527]
[1739391974172,15.69745527,195.62,195.56,17.8973]
[1739391974865,15.69745527,195.61,195.56,12.7838]
[1739391975375,15.69745527,195.62,195.56,12.7838]
[1739391975857,15.69745527,195.63,195.57,15.69745527]
[1739391976055,15.69745527,195.64,195.58,15.69745527]
[1739391976974,15.69745527,195.64,195.57,15.69745527]
[1739391977177,15.69745527,195.64,195.58,5.1129]
[1739391977778,15.69745527,195.64,195.58,17.8953]
[1739391977951,15.72745527,195.65,195.59,16.77083699]
[1739391978156,0.03,195.65,195.6,15.69745527]
[1739391978974,0.03,195.65,195.61,5.1122]
[1739391979775,0.03,195.65,195.61,6.18539153]
[1739391980048,0.03,195.65,195.61,5.1122]
[1739391980352,0.03,195.65,195.61,12.7805]
[1739391981482,0.03,195.65,195.61,33.59015527]
[1739391981968,0.03,195.65,195.64,15.69745527]
[1739391982178,0.03,195.65,195.62,17.30665527]
[1739391982352,0.03,195.65,195.63,5.1116]
[1739391983379,15.72745527,195.65,195.63,5.1116]
[1739391983551,15.72745527,195.65,195.61,12.7805]
[1739391983755,0.03,195.65,195.61,12.7805]
[1739391985070,15.72745527,195.65,195.61,12.7805]
[1739391985374,15.69745527,195.62,195.55,5.1137]
[1739391985555,15.69745527,195.6,195.55,5.1137]
[1739391985971,15.69745527,195.58,195.55,5.1137]
[1739391986980,15.69745527,195.58,195.56,3.72294184]
[1739391987276,15.69745527,195.58,195.56,8.89924184]
[1739391987482,15.69745527,195.57,195.56,3.78594184]
[1739391987883,15.69745527,195.58,195.56,0.063]
[1739391988088,15.69745527,195.59,195.56,5.1764]
[1739391988861,15.69745527,195.58,195.56,5.1764]
[1739391989066,15.69745527,195.58,195.56,0.063]
[1739391990364,15.69745527,195.59,195.56,0.063]
[1739391991163,15.69745527,195.58,195.56,0.063]
[1739391991706,10.05567761,195.58,195.56,0.063]
[1739391993094,0.03,195.65,195.6,20.0]
[1739391993273,0.03,195.65,195.64,10.30665761]
[1739391993690,0.03,195.65,195.64,10.05567761]
[1739391993882,1.6629,195.77,195.64,10.05567761]
[1739391994080,10.05567761,195.75,195.68,10.05567761]
[1739391994405,11.36919048,195.79,195.73,20.0]
[1739391994588,10.05567761,195.82,195.75,10.05567761]
[1739391994787,10.05567761,195.8,195.73,10.05567761]
[1739391995171,10.05567761,195.8,195.73,30.05567761]
[1739391995512,10.05567761,195.81,195.75,5.1085]
[1739391995808,15.67710482,195.81,195.75,5.1085]
[1739391996171,15.67710482,195.82,195.75,20.78560482]
[1739391996779,15.67710482,195.81,195.74,15.67710482]
[1739391996982,15.67710482,195.81,195.74,20.78590482]
[1739391997469,15.67710482,195.79,195.74,5.1088]
[1739391998706,15.67710482,195.79,195.73,5.109]
[1739392000098,15.67710482,195.78,195.73,5.109]
[1739392000299,15.67710482,195.77,195.71,33.56050482]
[1739392000496,1.12539,195.86,195.71,5.1096]
[1739392000497,15.67710482,195.74,195.71,5.1096]
[1739392000692,15.67710482,195.73,195.71,5.1096]
[1739392000894,15.67710482,195.77,195.71,5.1096]
[1739392001104,1.0,195.85,195.71,5.1096]
[1739392001415,21.0,195.84,195.71,5.1096]
[1739392001776,21.0,195.84,195.69,13.66282853]
[1739392001991,21.0,195.84,195.69,31.54822853]
[1739392002196,15.67710482,195.79,195.73,15.67710482]
[1739392003014,15.67710482,195.79,195.73,5.109]
[1739392004333,15.67710482,195.78,195.71,15.67710482]
[1739392004497,15.67710482,195.74,195.7,5.1098]
[1739392005025,15.67710482,195.75,195.7,5.1098]
[1739392005417,15.67710482,195.74,195.7,5.1098]
[1739392005618,15.67710482,195.74,195.69,5.1101]
[1739392005807,15.67710482,195.75,195.69,20.78720482]
[1739392006499,15.67710482,195.75,195.69,5.1101]
[1739392007092,15.67710482,195.77,195.7,15.67710482]
[1739392007812,15.67710482,195.76,195.69,15.67710482]
[1739392008123,15.67710482,195.75,195.69,15.67710482]
[1739392008323,15.67710482,195.76,195.7,5.1098]
[1739392008495,15.67710482,195.75,195.7,5.1098]
[1739392009319,15.67710482,195.75,195.69,5.1101]
[1739392009831,15.67710482,195.8,195.69,5.1101]
[1739392009832,15.67710482,195.74,195.69,5.1101]
[1739392010720,15.67710482,195.74,195.67,15.67710482]
[1739392011995,15.67710482,195.74,195.68,5.1103]
[1739392012220,15.67710482,195.72,195.68,5.1103]
[1739392012600,15.67710482,195.69,195.64,5.1114]
[1739392012810,15.67710482,195.67,195.64,5.1114]
[1739392013826,15.67710482,195.67,195.61,26.17765096]
[1739392014015,15.67710482,195.66,195.62,5.1117]
[1739392014224,15.67710482,195.65,195.62,5.1117]
[1739392014608,15.67710482,195.66,195.62,5.1117]
[1739392014934,15.67710482,195.65,195.62,5.1117]
[1739392015514,15.67710482,195.65,195.61,31.28975096]
[1739392016037,15.67710482,195.64,195.61,31.28975096]
[1739392016326,15.67710482,195.64,195.61,26.17765096]
[1739392016524,15.67710482,195.63,195.61,26.17765096]
[1739392016932,15.67710482,195.62,195.61,26.17765096]
[1739392017132,15.67710482,195.62,195.61,25.67765096]
[1739392018549,15.67710482,195.62,195.56,0.063]
[1739392018731,15.67710482,195.6,195.56,0.063]
[1739392019230,15.67710482,195.59,195.56,0.063]
[1739392020403,15.67710482,195.57,195.56,0.063]
[1739392021433,15.67710482,195.58,195.56,0.063]
[1739392021642,15.67710482,195.59,195.56,0.063]
[1739392021931,15.67710482,195.58,195.56,0.063]
[1739392022229,8.45116,195.67,195.56,0.063]
[1739392022230,15.67710482,195.57,195.56,0.063]
[1739392023528,15.67710482,195.58,195.56,0.063]
[1739392023722,15.67710482,195.57,195.56,0.063]
[1739392024842,21.12539,195.55,195.54,0.063]
[1739392025143,36.80249482,195.55,195.54,0.063]
[1739392026233,37.17896482,195.55,195.54,0.063]
[1739392026446,1.12539,195.52,195.51,0.063]
[1739392026738,32.47959964,195.52,195.51,0.063]
[1739392026949,15.67710482,195.52,195.51,0.063]
[1739392027836,16.80249482,195.52,195.51,0.063]
[1739392028034,33.85606964,195.52,195.51,0.063]
[1739392028235,1.12539,195.5,195.45,0.063]
[1739392028426,15.67710482,195.46,195.45,0.063]
[1739392029662,16.80249482,195.46,195.45,0.063]
[1739392030028,16.17906482,195.46,195.45,0.063]
[1739392030230,15.67710482,195.46,195.45,0.063]
[1739392030846,16.80249482,195.46,195.45,0.063]
[1739392031021,17.17896482,195.46,195.45,0.063]
[1739392031417,15.67710482,195.46,195.45,0.063]
[1739392032054,16.80249482,195.46,195.45,0.063]
[1739392032258,17.17896482,195.46,195.45,0.063]
[1739392032953,18.17896482,195.46,195.45,0.063]
[1739392033452,17.17896482,195.46,195.45,0.063]
[1739392034246,0.9999,195.45,195.36,0.063]
[1739392034449,15.67710482,195.38,195.36,0.063]
[1739392035252,15.67710482,195.39,195.36,0.063]
[1739392035847,15.67710482,195.38,195.36,0.063]
[1739392036049,15.67710482,195.37,195.36,0.063]
[1739392036740,15.67710482,195.38,195.36,0.063]
[1739392037531,0.9999,195.43,195.36,0.063]
[1739392037532,15.67710482,195.37,195.36,0.063]
[1739392041157,16.80249482,195.37,195.36,0.063]
[1739392041337,31.59081335,195.37,195.36,0.063]
[1739392041536,21.12539,195.35,195.34,0.063]
[1739392041860,2.50186,195.34,195.33,0.063]
[1739392042035,1.12539,195.32,195.31,0.063]
[1739392042237,15.80259482,195.32,195.31,0.063]
[1739392042438,16.80249482,195.32,195.31,0.063]
[1739392042647,15.67710482,195.32,195.31,0.063]
[1739392043035,16.80249482,195.32,195.31,0.063]
[1739392043268,15.67710482,195.32,195.31,0.063]
[1739392044851,15.80259482,195.32,195.31,0.063]
[1739392045170,47.26791817,195.32,195.31,0.063]
[1739392045349,15.67710482,195.24,195.23,0.063]
[1739392046150,15.67710482,195.26,195.23,0.063]
[1739392046562,15.67710482,195.29,195.23,0.063]
[1739392046864,15.67710482,195.3,195.23,20.86200482]
[1739392047940,15.67710482,195.29,195.23,20.86200482]
[1739392048342,15.67710482,195.31,195.24,15.67710482]
[1739392048550,15.67710482,195.35,195.28,15.67710482]
[1739392048844,2.5008,195.41,195.28,15.67710482]
[1739392048845,15.67710482,195.34,195.28,15.67710482]
[1739392049044,15.67710482,195.31,195.25,1.6182]
[1739392049259,0.12549,195.37,195.25,1.6182]
[1739392049748,20.0,195.36,195.26,5.1213]
[1739392050349,15.67710482,195.31,195.26,5.1213]
[1739392050548,15.67710482,195.32,195.26,5.1213]
[1739392050744,15.67710482,195.3,195.26,5.1213]
[1739392051062,15.67710482,195.29,195.24,11.5141]
[1739392051246,15.67710482,195.32,195.26,15.67710482]
[1739392051652,15.67710482,195.31,195.24,27.19120482]
[1739392051852,15.67710482,195.3,195.24,27.19120482]
[1739392052458,15.67710482,195.26,195.23,0.063]